[Event "January 2 Early 2024"]
[Site "https://www.chess.com"]
[Date "2024.01.02"]
[Round "5"]
[White "Sipila, Vilka"]
[Black "Tari, Aryan"]
[Result "1-0"]
[Board "56"]
[TimeControl "180+1"]
[WhiteFideId "505455"]
[BlackFideId "1510045"]
[WhiteElo "2629"]
[BlackElo "2929"]
[WhiteTeam "FIN"]
[BlackTeam "NOR"]
[WhiteClock "0:00:30"]
[BlackClock "0:00:02"]

1. e4 {[%clk 0:02:59]}  e5 {[%clk 0:02:57]} 2. Nf3 {[%clk 0:02:59]}  Nc6 {[%clk 0:02:57]} 3. Bb5 {[%clk 0:02:59]}  Nge7 {[%clk 0:02:56]} 4. Nc3 {[%clk 0:02:58]}  Ng6 {[%clk 0:02:56]} 5. d4 {[%clk 0:02:49]}  exd4 {[%clk 0:02:43]} 6. Nxd4 {[%clk 0:02:49]}  Nxd4 {[%clk 0:02:38]} 7. Qxd4 {[%clk 0:02:49]}  c6 {[%clk 0:02:38]} 8. Bc4 {[%clk 0:02:47]}  b5 {[%clk 0:02:36]} 9. Be2 {[%clk 0:02:29]}  Qb6 {[%clk 0:02:30]} 10. Be3 {[%clk 0:02:27]}  Qxd4 {[%clk 0:02:14]} 11. Bxd4 {[%clk 0:02:28]}  Nf4 {[%clk 0:02:12]} 12. Bf3 {[%clk 0:02:24]}  Ne6 {[%clk 0:02:09]} 13. Be3 {[%clk 0:02:23]}  d6 {[%clk 0:02:03]} 14. O-O {[%clk 0:02:21]}  Be7 {[%clk 0:02:02]} 15. a4 {[%clk 0:02:06]}  b4 {[%clk 0:02:01]} 16. Ne2 {[%clk 0:02:06]}  Ba6 {[%clk 0:01:48]} 17. Rfd1 {[%clk 0:02:05]}  O-O {[%clk 0:01:06]} 18. Nd4 {[%clk 0:02:05]}  Nxd4 {[%clk 0:01:05]} 19. Bxd4 {[%clk 0:02:06]}  c5 {[%clk 0:01:04]} 20. Be3 {[%clk 0:02:05]}  Rad8 {[%clk 0:01:02]} 21. Bf4 {[%clk 0:02:00]}  f5 {[%clk 0:00:33]} 22. exf5 {[%clk 0:01:53]}  Rxf5 {[%clk 0:00:32]} 23. Bg3 {[%clk 0:01:53]}  d5 {[%clk 0:00:19]} 24. Bc7 {[%clk 0:01:47]}  Rd7 {[%clk 0:00:11]} 25. Bg4 {[%clk 0:01:47]}  g6 {[%clk 0:00:12]} 26. Bxf5 {[%clk 0:01:47]}  gxf5 {[%clk 0:00:13]} 27. Be5 {[%clk 0:01:48]}  d4 {[%clk 0:00:13]} 28. c3 {[%clk 0:01:47]}  Be2 {[%clk 0:00:11]} 29. Rd2 {[%clk 0:01:44]}  d3 {[%clk 0:00:11]} 30. Re1 {[%clk 0:01:41]}  Rb7 {[%clk 0:00:09]} 31. f4 {[%clk 0:01:37]}  Kf7 {[%clk 0:00:08]} 32. Kf2 {[%clk 0:01:35]}  bxc3 {[%clk 0:00:09]} 33. Bxc3 {[%clk 0:01:31]}  c4 {[%clk 0:00:10]} 34. Rexe2 {[%clk 0:01:29]}  dxe2 {[%clk 0:00:10]} 35. Kxe2 {[%clk 0:01:28]}  Bb4 {[%clk 0:00:09]} 36. Rd4 {[%clk 0:01:25]}  Bxc3 {[%clk 0:00:09]} 37. bxc3 {[%clk 0:01:26]}  Rb2+ {[%clk 0:00:09]} 38. Kf3 {[%clk 0:01:26]}  Ke6 {[%clk 0:00:09]} 39. Rxc4 {[%clk 0:01:26]}  Ra2 {[%clk 0:00:10]} 40. h3 {[%clk 0:01:22]}  a5 {[%clk 0:00:10]} 41. g4 {[%clk 0:01:14]}  Kd5 {[%clk 0:00:10]} 42. Rd4+ {[%clk 0:01:14]}  Ke6 {[%clk 0:00:10]} 43. Kg3 {[%clk 0:01:07]}  Ra3 {[%clk 0:00:08]} 44. Rc4 {[%clk 0:01:04]}  Kd5 {[%clk 0:00:08]} 45. Rd4+ {[%clk 0:01:04]}  Ke6 {[%clk 0:00:08]} 46. gxf5+ {[%clk 0:00:43]}  Kxf5 {[%clk 0:00:07]} 47. Rd5+ {[%clk 0:00:44]}  Kf6 {[%clk 0:00:03]} 48. Rxa5 {[%clk 0:00:42]}  Rxc3+ {[%clk 0:00:03]} 49. Kg4 {[%clk 0:00:43]}  Rc1 {[%clk 0:00:03]} 50. Ra6+ {[%clk 0:00:43]}  Kf7 {[%clk 0:00:03]} 51. a5 {[%clk 0:00:39]}  Rc5 {[%clk 0:00:03]} 52. Ra8 {[%clk 0:00:36]}  h5+ {[%clk 0:00:03]} 53. Kf3 {[%clk 0:00:35]}  Rc3+ {[%clk 0:00:03]} 54. Kg2 {[%clk 0:00:32]}  h4 {[%clk 0:00:04]} 55. a6 {[%clk 0:00:31]}  Rg3+ {[%clk 0:00:04]} 56. Kf2 {[%clk 0:00:30]}  Rxh3 {[%clk 0:00:04]} 57. a7 {[%clk 0:00:30]}  Ra3 {[%clk 0:00:02]} 58. Rh8 {[%clk 0:00:30]} 1-0

[Event "January 2 Early 2024"]
[Site "https://www.chess.com"]
[Date "2024.01.02"]
[Round "5"]
[White "Galchenko, Matvey"]
[Black "Yagupov, Igor"]
[Result "1-0"]
[Board "57"]
[TimeControl "180+1"]
[WhiteFideId "24175480"]
[BlackFideId "4113632"]
[WhiteElo "2898"]
[BlackElo "2618"]
[WhiteTeam "FID"]
[BlackTeam "RUS"]
[WhiteClock "0:00:03"]
[BlackClock "0:00:00"]

1. e4 {[%clk 0:02:58]}  c5 {[%clk 0:02:58]} 2. c3 {[%clk 0:02:58]}  Nf6 {[%clk 0:02:58]} 3. e5 {[%clk 0:02:57]}  Nd5 {[%clk 0:02:58]} 4. Nf3 {[%clk 0:02:58]}  d6 {[%clk 0:02:55]} 5. Bc4 {[%clk 0:02:58]}  e6 {[%clk 0:02:55]} 6. d4 {[%clk 0:02:57]}  cxd4 {[%clk 0:02:54]} 7. cxd4 {[%clk 0:02:58]}  Nc6 {[%clk 0:02:54]} 8. O-O {[%clk 0:02:58]}  Be7 {[%clk 0:02:54]} 9. Bd2 {[%clk 0:02:57]}  Kf8 {[%clk 0:02:53]} 10. Nc3 {[%clk 0:02:57]}  Nxc3 {[%clk 0:02:52]} 11. Bxc3 {[%clk 0:02:58]}  a6 {[%clk 0:02:47]} 12. Qe2 {[%clk 0:02:57]}  dxe5 {[%clk 0:02:44]} 13. dxe5 {[%clk 0:02:57]}  b5 {[%clk 0:02:39]} 14. Bd3 {[%clk 0:02:47]}  Qb6 {[%clk 0:02:34]} 15. a3 {[%clk 0:02:38]}  g6 {[%clk 0:02:32]} 16. Nd2 {[%clk 0:02:33]}  Kg7 {[%clk 0:02:25]} 17. Ne4 {[%clk 0:02:26]}  Bb7 {[%clk 0:02:13]} 18. Nd6 {[%clk 0:02:24]}  Rhf8 {[%clk 0:02:02]} 19. Be4 {[%clk 0:02:12]}  Rad8 {[%clk 0:01:55]} 20. Nxb7 {[%clk 0:01:58]}  Qxb7 {[%clk 0:01:54]} 21. Qf3 {[%clk 0:01:58]}  Rc8 {[%clk 0:01:54]} 22. Rad1 {[%clk 0:01:56]}  Qb6 {[%clk 0:01:25]} 23. Rd6 {[%clk 0:01:41]}  Bxd6 {[%clk 0:01:24]} 24. exd6+ {[%clk 0:01:41]}  Nd4 {[%clk 0:01:24]} 25. Rd1 {[%clk 0:00:58]}  e5 {[%clk 0:01:22]} 26. Qe3 {[%clk 0:00:51]}  Rcd8 {[%clk 0:01:04]} 27. Rxd4 {[%clk 0:00:41]}  Rxd6 {[%clk 0:00:58]} 28. Rxd6 {[%clk 0:00:31]}  Qxd6 {[%clk 0:00:59]} 29. h3 {[%clk 0:00:29]}  f6 {[%clk 0:00:57]} 30. Bf3 {[%clk 0:00:27]}  Rf7 {[%clk 0:00:56]} 31. Bb4 {[%clk 0:00:26]}  Qd4 {[%clk 0:00:53]} 32. Qe2 {[%clk 0:00:15]}  Rd7 {[%clk 0:00:51]} 33. Bc3 {[%clk 0:00:15]}  Qd3 {[%clk 0:00:50]} 34. Kf1 {[%clk 0:00:06]}  Qb1+ {[%clk 0:00:45]} 35. Qe1 {[%clk 0:00:06]}  Qd3+ {[%clk 0:00:43]} 36. Be2 {[%clk 0:00:07]}  Qd5 {[%clk 0:00:43]} 37. Qc1 {[%clk 0:00:07]}  h5 {[%clk 0:00:39]} 38. Bf3 {[%clk 0:00:07]}  Qd3+ {[%clk 0:00:33]} 39. Kg1 {[%clk 0:00:07]}  e4 {[%clk 0:00:33]} 40. Qf4 {[%clk 0:00:05]}  exf3 {[%clk 0:00:23]} 41. Qxf6+ {[%clk 0:00:05]}  Kg8 {[%clk 0:00:24]} 42. Qh8+ {[%clk 0:00:04]}  Kf7 {[%clk 0:00:25]} 43. Qg7+ {[%clk 0:00:03]}  Ke6 {[%clk 0:00:25]} 44. Qg8+ {[%clk 0:00:03]}  Kd6 {[%clk 0:00:23]} 45. gxf3 {[%clk 0:00:04]}  Qxf3 {[%clk 0:00:20]} 46. Qxg6+ {[%clk 0:00:04]}  Kd5 {[%clk 0:00:19]} 47. Qg5+ {[%clk 0:00:03]}  Kc4 {[%clk 0:00:19]} 48. Qg8+ {[%clk 0:00:03]}  Qd5 {[%clk 0:00:17]} 49. Qc8+ {[%clk 0:00:04]}  Kb3 {[%clk 0:00:16]} 50. Qxa6 {[%clk 0:00:04]}  Qd1+ {[%clk 0:00:13]} 51. Kg2 {[%clk 0:00:04]}  Qd5+ {[%clk 0:00:11]} 52. Kg1 {[%clk 0:00:02]}  Qb7 {[%clk 0:00:11]} 53. Qe6+ {[%clk 0:00:02]}  Qd5 {[%clk 0:00:08]} 54. Qxd5+ {[%clk 0:00:02]}  Rxd5 {[%clk 0:00:07]} 55. Kg2 {[%clk 0:00:03]}  Rf5 {[%clk 0:00:06]} 56. Kg3 {[%clk 0:00:03]}  Kc4 {[%clk 0:00:06]} 57. f4 {[%clk 0:00:03]}  Kd3 {[%clk 0:00:05]} 58. Kf3 {[%clk 0:00:03]}  Rf7 {[%clk 0:00:03]} 59. Be5 {[%clk 0:00:04]}  Rf5 {[%clk 0:00:03]} 60. Kg3 {[%clk 0:00:04]}  Rf7 {[%clk 0:00:03]} 61. b3 {[%clk 0:00:03]}  Ke4 {[%clk 0:00:00]} 62. a4 {[%clk 0:00:03]} 1-0

[Event "January 2 Early 2024"]
[Site "https://www.chess.com"]
[Date "2024.01.02"]
[Round "5"]
[White "Kukhmazov, Arsen"]
[Black "Niedbala, Bartlomiej"]
[Result "1-0"]
[Board "58"]
[TimeControl "180+1"]
[WhiteFideId "24108260"]
[BlackFideId "21834008"]
[WhiteElo "2869"]
[BlackElo "2626"]
[WhiteTeam "FID"]
[BlackTeam "POL"]
[WhiteClock "0:00:12"]
[BlackClock "0:00:11"]

1. d4 {[%clk 0:02:54]}  Nf6 {[%clk 0:02:59]} 2. c4 {[%clk 0:02:54]}  e6 {[%clk 0:03:00]} 3. Nf3 {[%clk 0:02:52]}  d5 {[%clk 0:03:00]} 4. e3 {[%clk 0:02:45]}  Be7 {[%clk 0:02:56]} 5. b3 {[%clk 0:02:45]}  c5 {[%clk 0:02:56]} 6. Bb2 {[%clk 0:02:45]}  cxd4 {[%clk 0:02:56]} 7. exd4 {[%clk 0:02:46]}  O-O {[%clk 0:02:57]} 8. Bd3 {[%clk 0:02:45]}  Nc6 {[%clk 0:02:58]} 9. O-O {[%clk 0:02:44]}  b6 {[%clk 0:02:58]} 10. Nbd2 {[%clk 0:02:42]}  Bb7 {[%clk 0:02:59]} 11. Qe2 {[%clk 0:02:42]}  Rc8 {[%clk 0:02:59]} 12. Rac1 {[%clk 0:02:42]}  Re8 {[%clk 0:02:59]} 13. Rfd1 {[%clk 0:02:42]}  Bf8 {[%clk 0:02:59]} 14. h3 {[%clk 0:02:41]}  g6 {[%clk 0:03:00]} 15. Ne5 {[%clk 0:02:34]}  dxc4 {[%clk 0:02:53]} 16. Ndxc4 {[%clk 0:02:07]}  Nb4 {[%clk 0:02:43]} 17. Bb1 {[%clk 0:02:06]}  Nbd5 {[%clk 0:02:36]} 18. g3 {[%clk 0:02:01]}  Bh6 {[%clk 0:02:36]} 19. f4 {[%clk 0:01:52]}  Bxf4 {[%clk 0:02:12]} 20. gxf4 {[%clk 0:01:53]}  Nxf4 {[%clk 0:02:12]} 21. Qh2 {[%clk 0:01:49]}  N6h5 {[%clk 0:01:53]} 22. d5 {[%clk 0:01:45]}  Qg5+ {[%clk 0:01:38]} 23. Ng4 {[%clk 0:01:13]}  exd5 {[%clk 0:01:36]} 24. Ne5 {[%clk 0:01:07]}  Rxc1 {[%clk 0:01:14]} 25. Rxc1 {[%clk 0:01:06]}  Rxe5 {[%clk 0:00:52]} 26. Bxe5 {[%clk 0:01:07]}  Nxh3+ {[%clk 0:00:52]} 27. Qxh3 {[%clk 0:01:07]}  Qxc1+ {[%clk 0:00:52]} 28. Qf1 {[%clk 0:01:07]}  Qg5 {[%clk 0:00:42]} 29. Qg2 {[%clk 0:01:05]}  Qc1+ {[%clk 0:00:38]} 30. Qf1 {[%clk 0:01:05]}  Qg5 {[%clk 0:00:32]} 31. Qg2 {[%clk 0:00:47]}  d4 {[%clk 0:00:24]} 32. Qxb7 {[%clk 0:00:16]}  Qxg4+ {[%clk 0:00:24]} 33. Kf2 {[%clk 0:00:15]}  Qh4+ {[%clk 0:00:20]} 34. Ke2 {[%clk 0:00:14]}  Qd8 {[%clk 0:00:16]} 35. Qxa7 {[%clk 0:00:07]}  f6 {[%clk 0:00:16]} 36. Qb8 {[%clk 0:00:07]}  Qxb8 {[%clk 0:00:13]} 37. Bxb8 {[%clk 0:00:08]}  Kf7 {[%clk 0:00:10]} 38. Ba7 {[%clk 0:00:09]}  Ke6 {[%clk 0:00:10]} 39. Bxb6 {[%clk 0:00:09]}  Kd5 {[%clk 0:00:11]} 40. a4 {[%clk 0:00:10]}  Nf4+ {[%clk 0:00:11]} 41. Kd2 {[%clk 0:00:10]}  h6 {[%clk 0:00:11]} 42. a5 {[%clk 0:00:10]}  h5 {[%clk 0:00:11]} 43. a6 {[%clk 0:00:09]}  Kc6 {[%clk 0:00:11]} 44. a7 {[%clk 0:00:10]}  Kb7 {[%clk 0:00:11]} 45. Be4+ {[%clk 0:00:11]}  Kxb6 {[%clk 0:00:11]} 46. a8=Q {[%clk 0:00:11]}  Kc5 {[%clk 0:00:11]} 47. Qc6+ {[%clk 0:00:12]}  Kb4 {[%clk 0:00:12]} 48. Qa4+ {[%clk 0:00:12]}  Kc5 {[%clk 0:00:12]} 49. Qc4+ {[%clk 0:00:13]}  Kd6 {[%clk 0:00:12]} 50. Qxd4+ {[%clk 0:00:14]}  Ke6 {[%clk 0:00:13]} 51. b4 {[%clk 0:00:11]}  h4 {[%clk 0:00:13]} 52. b5 {[%clk 0:00:11]}  h3 {[%clk 0:00:14]} 53. b6 {[%clk 0:00:11]}  f5 {[%clk 0:00:14]} 54. b7 {[%clk 0:00:11]}  fxe4 {[%clk 0:00:11]} 55. Qxe4+ {[%clk 0:00:12]} 1-0

[Event "January 2 Early 2024"]
[Site "https://www.chess.com"]
[Date "2024.01.02"]
[Round "5"]
[White "Ismagilov, Damir"]
[Black "Rohith Krishna S"]
[Result "1-0"]
[Board "59"]
[TimeControl "180+1"]
[WhiteFideId "34199982"]
[BlackFideId "46617051"]
[WhiteElo "2562"]
[BlackElo "2851"]
[WhiteTeam "RUS"]
[BlackTeam "IND"]
[WhiteClock "0:00:32"]
[BlackClock "0:00:02"]

1. d4 {[%clk 0:02:59]}  Nf6 {[%clk 0:02:52]} 2. Bf4 {[%clk 0:02:59]}  g6 {[%clk 0:02:53]} 3. Nc3 {[%clk 0:02:55]}  d5 {[%clk 0:02:50]} 4. Qd2 {[%clk 0:02:55]}  a6 {[%clk 0:02:45]} 5. O-O-O {[%clk 0:02:55]}  b5 {[%clk 0:02:33]} 6. f3 {[%clk 0:02:53]}  Nc6 {[%clk 0:02:25]} 7. e4 {[%clk 0:02:38]}  Be6 {[%clk 0:02:23]} 8. e5 {[%clk 0:02:37]}  Nd7 {[%clk 0:02:17]} 9. h4 {[%clk 0:02:32]}  h5 {[%clk 0:02:16]} 10. Nh3 {[%clk 0:02:32]}  Bxh3 {[%clk 0:02:15]} 11. Rxh3 {[%clk 0:02:33]}  e6 {[%clk 0:02:16]} 12. Bg5 {[%clk 0:02:27]}  Be7 {[%clk 0:02:15]} 13. f4 {[%clk 0:02:22]}  Nb6 {[%clk 0:02:00]} 14. Kb1 {[%clk 0:02:13]}  b4 {[%clk 0:01:51]} 15. Ne2 {[%clk 0:02:10]}  Nc4 {[%clk 0:01:46]} 16. Qd3 {[%clk 0:02:10]}  a5 {[%clk 0:01:46]} 17. Nc1 {[%clk 0:02:01]}  a4 {[%clk 0:01:45]} 18. b3 {[%clk 0:01:54]}  Na3+ {[%clk 0:01:16]} 19. Kb2 {[%clk 0:01:55]}  Na7 {[%clk 0:01:15]} 20. bxa4 {[%clk 0:01:36]}  Nc8 {[%clk 0:00:53]} 21. Qb3 {[%clk 0:01:30]}  Nb6 {[%clk 0:00:50]} 22. Ka1 {[%clk 0:01:07]}  Nxa4 {[%clk 0:00:47]} 23. Be2 {[%clk 0:00:45]}  O-O {[%clk 0:00:34]} 24. g4 {[%clk 0:00:45]}  hxg4 {[%clk 0:00:28]} 25. Bxg4 {[%clk 0:00:44]}  Nc3 {[%clk 0:00:28]} 26. Rxc3 {[%clk 0:00:44]}  bxc3 {[%clk 0:00:28]} 27. Qxc3 {[%clk 0:00:44]}  Qb8 {[%clk 0:00:18]} 28. Nb3 {[%clk 0:00:40]}  Bb4 {[%clk 0:00:19]} 29. Qd3 {[%clk 0:00:38]}  Qa7 {[%clk 0:00:19]} 30. Bxe6 {[%clk 0:00:37]}  Kh7 {[%clk 0:00:12]} 31. h5 {[%clk 0:00:33]}  Nc4 {[%clk 0:00:12]} 32. hxg6+ {[%clk 0:00:33]}  fxg6 {[%clk 0:00:05]} 33. Rh1+ {[%clk 0:00:32]}  Kg7 {[%clk 0:00:02]} 34. Bh6+ {[%clk 0:00:32]} 1-0

[Event "January 2 Early 2024"]
[Site "https://www.chess.com"]
[Date "2024.01.02"]
[Round "5"]
[White "Weishaeutel, Moritz"]
[Black "Mekhitarian, Krikor Sevag"]
[Result "0-1"]
[Board "60"]
[TimeControl "180+1"]
[WhiteFideId "12967300"]
[BlackFideId "2107660"]
[WhiteElo "2594"]
[BlackElo "2849"]
[WhiteTeam "GER"]
[BlackTeam "BRA"]
[WhiteClock "0:00:02"]
[BlackClock "0:00:07"]

1. e4 {[%clk 0:03:00]}  e6 {[%clk 0:02:58]} 2. d4 {[%clk 0:03:00]}  d5 {[%clk 0:02:58]} 3. exd5 {[%clk 0:03:01]}  exd5 {[%clk 0:02:58]} 4. Nf3 {[%clk 0:03:01]}  Nc6 {[%clk 0:02:57]} 5. Nc3 {[%clk 0:03:01]}  Bb4 {[%clk 0:02:52]} 6. Bd3 {[%clk 0:03:01]}  Nge7 {[%clk 0:02:52]} 7. O-O {[%clk 0:03:01]}  Bg4 {[%clk 0:02:50]} 8. a3 {[%clk 0:02:55]}  Bxc3 {[%clk 0:02:40]} 9. bxc3 {[%clk 0:02:56]}  Qd7 {[%clk 0:02:32]} 10. h3 {[%clk 0:02:53]}  Bf5 {[%clk 0:02:26]} 11. Bb5 {[%clk 0:02:49]}  f6 {[%clk 0:02:18]} 12. Re1 {[%clk 0:02:44]}  a6 {[%clk 0:02:14]} 13. Ba4 {[%clk 0:02:39]}  O-O {[%clk 0:01:58]} 14. Bb3 {[%clk 0:01:55]}  Be6 {[%clk 0:01:53]} 15. Qe2 {[%clk 0:01:53]}  Bf7 {[%clk 0:01:52]} 16. Bf4 {[%clk 0:01:41]}  Rfe8 {[%clk 0:01:52]} 17. Qd2 {[%clk 0:01:35]}  Na5 {[%clk 0:01:52]} 18. Ba2 {[%clk 0:01:32]}  Nc4 {[%clk 0:01:47]} 19. Bxc4 {[%clk 0:01:32]}  dxc4 {[%clk 0:01:47]} 20. Bg3 {[%clk 0:01:28]}  Nd5 {[%clk 0:01:44]} 21. Rab1 {[%clk 0:01:24]}  b6 {[%clk 0:01:38]} 22. Nh2 {[%clk 0:01:15]}  Qa4 {[%clk 0:01:20]} 23. Ra1 {[%clk 0:00:46]}  Rxe1+ {[%clk 0:01:19]} 24. Rxe1 {[%clk 0:00:41]}  Qxa3 {[%clk 0:01:19]} 25. Nf3 {[%clk 0:00:28]}  Qxc3 {[%clk 0:00:47]} 26. Qxc3 {[%clk 0:00:27]}  Nxc3 {[%clk 0:00:47]} 27. Bxc7 {[%clk 0:00:28]}  Nd5 {[%clk 0:00:48]} 28. Bd6 {[%clk 0:00:28]}  Rd8 {[%clk 0:00:44]} 29. Bg3 {[%clk 0:00:25]}  b5 {[%clk 0:00:37]} 30. Ra1 {[%clk 0:00:24]}  Ra8 {[%clk 0:00:37]} 31. Nd2 {[%clk 0:00:24]}  Nb4 {[%clk 0:00:35]} 32. c3 {[%clk 0:00:24]}  Nd5 {[%clk 0:00:35]} 33. Ne4 {[%clk 0:00:23]}  Bg6 {[%clk 0:00:34]} 34. Nd6 {[%clk 0:00:18]}  Nxc3 {[%clk 0:00:31]} 35. f3 {[%clk 0:00:18]}  Kf8 {[%clk 0:00:24]} 36. Be1 {[%clk 0:00:17]}  Ke7 {[%clk 0:00:16]} 37. Nxc4 {[%clk 0:00:17]}  Ne2+ {[%clk 0:00:13]} 38. Kf2 {[%clk 0:00:18]}  Nxd4 {[%clk 0:00:13]} 39. Bb4+ {[%clk 0:00:18]}  Kf7 {[%clk 0:00:10]} 40. Nb6 {[%clk 0:00:18]}  Nc2 {[%clk 0:00:06]} 41. Nxa8 {[%clk 0:00:15]}  Nxa1 {[%clk 0:00:05]} 42. Nc7 {[%clk 0:00:16]}  Nc2 {[%clk 0:00:06]} 43. Bd2 {[%clk 0:00:16]}  b4 {[%clk 0:00:03]} 44. Nxa6 {[%clk 0:00:14]}  b3 {[%clk 0:00:04]} 45. Bc3 {[%clk 0:00:15]}  Bd3 {[%clk 0:00:03]} 46. Nc5 {[%clk 0:00:15]}  Bc4 {[%clk 0:00:03]} 47. g4 {[%clk 0:00:10]}  h6 {[%clk 0:00:02]} 48. f4 {[%clk 0:00:10]}  Ke7 {[%clk 0:00:03]} 49. f5 {[%clk 0:00:09]}  Kf7 {[%clk 0:00:03]} 50. h4 {[%clk 0:00:09]}  Na3 {[%clk 0:00:04]} 51. Ke3 {[%clk 0:00:08]}  Nb5 {[%clk 0:00:04]} 52. Bb2 {[%clk 0:00:08]}  Bd5 {[%clk 0:00:05]} 53. Nd3 {[%clk 0:00:07]}  Nd6 {[%clk 0:00:04]} 54. Nb4 {[%clk 0:00:07]}  Bg2 {[%clk 0:00:03]} 55. Kd3 {[%clk 0:00:06]}  Bf3 {[%clk 0:00:04]} 56. g5 {[%clk 0:00:05]}  Nxf5 {[%clk 0:00:04]} 57. gxf6 {[%clk 0:00:05]}  gxf6 {[%clk 0:00:04]} 58. Na6 {[%clk 0:00:03]}  Nxh4 {[%clk 0:00:04]} 59. Nc5 {[%clk 0:00:04]}  Bd1 {[%clk 0:00:04]} 60. Ne4 {[%clk 0:00:04]}  Bc2+ {[%clk 0:00:05]} 61. Ke3 {[%clk 0:00:04]}  Bxe4 {[%clk 0:00:05]} 62. Kxe4 {[%clk 0:00:05]}  Ng6 {[%clk 0:00:05]} 63. Kf5 {[%clk 0:00:05]}  Ne7+ {[%clk 0:00:05]} 64. Kg4 {[%clk 0:00:06]}  Kg6 {[%clk 0:00:05]} 65. Kh4 {[%clk 0:00:07]}  Nd5 {[%clk 0:00:06]} 66. Kg4 {[%clk 0:00:06]}  Ne3+ {[%clk 0:00:06]} 67. Kf3 {[%clk 0:00:02]}  Nc4 {[%clk 0:00:07]} 0-1

[Event "January 2 Early 2024"]
[Site "https://www.chess.com"]
[Date "2024.01.02"]
[Round "5"]
[White "Tifferet, Shakked"]
[Black "Bartel, Mateusz"]
[Result "0-1"]
[Board "62"]
[TimeControl "180+1"]
[WhiteFideId "2811529"]
[BlackFideId "1112635"]
[WhiteElo "2539"]
[BlackElo "2800"]
[WhiteTeam "ISR"]
[BlackTeam "POL"]
[WhiteClock "0:00:01"]
[BlackClock "0:00:17"]

1. e4 {[%clk 0:01:52]}  e5 {[%clk 0:01:53]} 2. Nf3 {[%clk 0:01:50]}  d6 {[%clk 0:01:53]} 3. Nc3 {[%clk 0:01:49]}  Nf6 {[%clk 0:01:52]} 4. d4 {[%clk 0:01:47]}  exd4 {[%clk 0:01:53]} 5. Nxd4 {[%clk 0:01:46]}  Be7 {[%clk 0:01:53]} 6. Bc4 {[%clk 0:01:45]}  O-O {[%clk 0:01:54]} 7. O-O {[%clk 0:01:42]}  Nc6 {[%clk 0:01:54]} 8. Nxc6 {[%clk 0:01:39]}  bxc6 {[%clk 0:01:53]} 9. Bb3 {[%clk 0:01:37]}  Nd7 {[%clk 0:01:45]} 10. Be3 {[%clk 0:01:34]}  Bf6 {[%clk 0:01:41]} 11. Bd4 {[%clk 0:01:28]}  Bxd4 {[%clk 0:01:40]} 12. Qxd4 {[%clk 0:01:28]}  Qf6 {[%clk 0:01:36]} 13. Qxf6 {[%clk 0:01:22]}  Nxf6 {[%clk 0:01:37]} 14. f4 {[%clk 0:01:22]}  Nd7 {[%clk 0:01:31]} 15. Rfe1 {[%clk 0:00:38]}  Re8 {[%clk 0:01:25]} 16. Rad1 {[%clk 0:00:37]}  Rb8 {[%clk 0:01:15]} 17. Kf2 {[%clk 0:00:31]}  Kf8 {[%clk 0:01:12]} 18. Rd2 {[%clk 0:00:32]}  Nc5 {[%clk 0:01:10]} 19. Rde2 {[%clk 0:00:29]}  a5 {[%clk 0:01:04]} 20. Na4 {[%clk 0:00:28]}  Nd7 {[%clk 0:00:43]} 21. Bc4 {[%clk 0:00:18]}  Nb6 {[%clk 0:00:26]} 22. Nxb6 {[%clk 0:00:17]}  cxb6 {[%clk 0:00:27]} 23. a4 {[%clk 0:00:14]}  Be6 {[%clk 0:00:25]} 24. Bd3 {[%clk 0:00:13]}  Bd7 {[%clk 0:00:22]} 25. h3 {[%clk 0:00:13]}  Rbd8 {[%clk 0:00:21]} 26. g4 {[%clk 0:00:12]}  f6 {[%clk 0:00:21]} 27. Bc4 {[%clk 0:00:12]}  Re7 {[%clk 0:00:18]} 28. Re3 {[%clk 0:00:11]}  Rde8 {[%clk 0:00:18]} 29. R1e2 {[%clk 0:00:11]}  d5 {[%clk 0:00:15]} 30. exd5 {[%clk 0:00:10]}  cxd5 {[%clk 0:00:15]} 31. Rxe7 {[%clk 0:00:05]}  Rxe7 {[%clk 0:00:15]} 32. Rxe7 {[%clk 0:00:06]}  Kxe7 {[%clk 0:00:15]} 33. Bb3 {[%clk 0:00:04]}  Kd6 {[%clk 0:00:15]} 34. Ke3 {[%clk 0:00:05]}  Kc5 {[%clk 0:00:14]} 35. c3 {[%clk 0:00:05]}  b5 {[%clk 0:00:15]} 36. axb5 {[%clk 0:00:05]}  Bxb5 {[%clk 0:00:16]} 37. Bc2 {[%clk 0:00:05]}  h6 {[%clk 0:00:15]} 38. h4 {[%clk 0:00:05]}  g5 {[%clk 0:00:14]} 39. fxg5 {[%clk 0:00:04]}  fxg5 {[%clk 0:00:14]} 40. hxg5 {[%clk 0:00:04]}  hxg5 {[%clk 0:00:15]} 41. Bd3 {[%clk 0:00:02]}  Bd7 {[%clk 0:00:14]} 42. Be2 {[%clk 0:00:03]}  Be8 {[%clk 0:00:13]} 43. Bf3 {[%clk 0:00:03]}  Kc4 {[%clk 0:00:13]} 44. Bd1 {[%clk 0:00:02]}  Bd7 {[%clk 0:00:13]} 45. Bf3 {[%clk 0:00:02]}  Kb3 {[%clk 0:00:13]} 46. Bxd5+ {[%clk 0:00:02]}  Kxb2 {[%clk 0:00:14]} 47. Kd4 {[%clk 0:00:02]}  Bxg4 {[%clk 0:00:13]} 48. Ke5 {[%clk 0:00:02]}  Bc8 {[%clk 0:00:13]} 49. Kf6 {[%clk 0:00:01]}  g4 {[%clk 0:00:14]} 50. Kg5 {[%clk 0:00:01]}  a4 {[%clk 0:00:14]} 51. Kf4 {[%clk 0:00:02]}  a3 {[%clk 0:00:14]} 52. Kg3 {[%clk 0:00:01]}  a2 {[%clk 0:00:15]} 53. Bxa2 {[%clk 0:00:01]}  Kxa2 {[%clk 0:00:16]} 54. c4 {[%clk 0:00:01]}  Kb3 {[%clk 0:00:16]} 55. c5 {[%clk 0:00:02]}  Kc4 {[%clk 0:00:16]} 56. c6 {[%clk 0:00:02]}  Kc5 {[%clk 0:00:17]} 57. c7 {[%clk 0:00:01]}  Kd6 {[%clk 0:00:17]} 0-1

[Event "January 2 Early 2024"]
[Site "https://www.chess.com"]
[Date "2024.01.02"]
[Round "5"]
[White "Gabrielian, Artur"]
[Black "Bodnar, Nikolay"]
[Result "1-0"]
[Board "63"]
[TimeControl "180+1"]
[WhiteFideId "4131002"]
[BlackFideId "14106469"]
[WhiteElo "2798"]
[BlackElo "2534"]
[WhiteTeam "RUS"]
[BlackTeam "UKR"]
[WhiteClock "0:00:57"]
[BlackClock "0:00:36"]

1. e4 {[%clk 0:03:00]}  c5 {[%clk 0:02:55]} 2. Nf3 {[%clk 0:03:00]}  Nc6 {[%clk 0:02:54]} 3. Bb5 {[%clk 0:02:59]}  Qb6 {[%clk 0:02:53]} 4. Nc3 {[%clk 0:02:58]}  e6 {[%clk 0:02:53]} 5. O-O {[%clk 0:02:58]}  Nge7 {[%clk 0:02:53]} 6. Re1 {[%clk 0:02:48]}  a6 {[%clk 0:02:53]} 7. Bxc6 {[%clk 0:02:48]}  Nxc6 {[%clk 0:02:49]} 8. b3 {[%clk 0:02:46]}  Be7 {[%clk 0:02:49]} 9. Bb2 {[%clk 0:02:43]}  O-O {[%clk 0:02:49]} 10. Nd5 {[%clk 0:02:41]}  exd5 {[%clk 0:02:42]} 11. exd5 {[%clk 0:02:41]}  Qd8 {[%clk 0:02:41]} 12. dxc6 {[%clk 0:02:39]}  dxc6 {[%clk 0:02:40]} 13. Ne5 {[%clk 0:02:26]}  Bf6 {[%clk 0:02:36]} 14. Re3 {[%clk 0:02:23]}  Re8 {[%clk 0:02:30]} 15. Qh5 {[%clk 0:02:17]}  g6 {[%clk 0:02:20]} 16. Qe2 {[%clk 0:02:07]}  Bf5 {[%clk 0:02:17]} 17. Re1 {[%clk 0:02:05]}  Qd5 {[%clk 0:02:09]} 18. Ng4 {[%clk 0:01:42]}  Bxb2 {[%clk 0:01:35]} 19. Rxe8+ {[%clk 0:01:39]}  Rxe8 {[%clk 0:01:35]} 20. Qxe8+ {[%clk 0:01:38]}  Kg7 {[%clk 0:01:36]} 21. Ne3 {[%clk 0:01:35]}  Qxd2 {[%clk 0:01:34]} 22. Nxf5+ {[%clk 0:01:35]}  gxf5 {[%clk 0:01:35]} 23. Qe2 {[%clk 0:01:12]}  Qd5 {[%clk 0:01:34]} 24. c4 {[%clk 0:01:12]}  Qd4 {[%clk 0:01:33]} 25. Rd1 {[%clk 0:01:09]}  Qf6 {[%clk 0:01:32]} 26. Rd7 {[%clk 0:01:07]}  b5 {[%clk 0:01:32]} 27. g3 {[%clk 0:01:06]}  Bd4 {[%clk 0:01:31]} 28. Kg2 {[%clk 0:01:04]}  Kg6 {[%clk 0:01:27]} 29. Qe7 {[%clk 0:01:02]}  Qxe7 {[%clk 0:01:11]} 30. Rxe7 {[%clk 0:01:00]}  b4 {[%clk 0:00:59]} 31. Rc7 {[%clk 0:00:58]}  Kf6 {[%clk 0:00:57]} 32. Rxc6+ {[%clk 0:00:59]}  Ke5 {[%clk 0:00:36]} 33. Kf3 {[%clk 0:00:57]} 1-0